bitfinex/quotes_SOLUSD_20230401
["timestamp","ask_amount","ask_price","bid_price","bid_amount"]
[1680369136644,27.13,20.88,20.867,112.1655]
[1680369137335,27.13,20.88,20.868,10.0]
[1680369143737,10.0,20.888,20.868,10.0]
[1680369144041,126.0737,20.889,20.87,10.0]
[1680369144346,123.2608717,20.889,20.872,10.0]
[1680369144552,123.2608717,20.889,20.873,17.0]
[1680369145030,123.2608717,20.889,20.874,10.0]
[1680369146328,17.0,20.888,20.874,10.0]
[1680369146641,17.0,20.888,20.871,10.0]
[1680369146642,10.0,20.887,20.866,19.169]
[1680369146845,17.0,20.886,20.867,111.6065]
[1680369147142,10.0,20.885,20.867,111.6065]
[1680369147322,17.0,20.884,20.867,111.6065]
[1680369147518,10.0,20.883,20.867,111.6065]
[1680369147740,17.0,20.882,20.867,111.6065]
[1680369147924,10.0,20.881,20.867,111.6065]
[1680369148126,10.0,20.879,20.867,111.6065]
[1680369149242,52.93227447,20.89,20.867,111.6065]
[1680369149433,38.319985,20.89,20.87,54.19]
[1680369149639,50.31425611,20.914,20.88,54.19]
[1680369149832,27.21,20.91,20.89,26.98]
[1680369150125,114.606,20.917,20.891,17.0]
[1680369150528,10.0,20.915,20.892,131.06107171]
[1680369150723,10.0,20.915,20.9,27.21]
[1680369150929,27.21,20.92,20.9,27.21]
[1680369151130,10.0,20.919,20.902,10.0]
[1680369151329,385.93961055,20.923,20.903,17.0]
[1680369151525,27.21,20.93,20.903,17.0]
[1680369151732,27.21,20.93,20.904,7.1871717]
[1680369151934,27.21,20.93,20.91,27.12]
[1680369152137,10.0,20.931,20.911,10.0]
[1680369152327,10.0,20.931,20.912,17.0]
[1680369152943,10.0,20.931,20.913,10.0]
[1680369153129,10.0,20.931,20.914,17.0]
[1680369154139,10.0,20.931,20.912,17.0]
[1680369154730,10.0,20.931,20.913,10.0]
[1680369155041,10.0,20.931,20.914,17.0]
[1680369155246,17.0,20.93,20.915,10.0]
[1680369155434,10.0,20.929,20.915,10.0]
[1680369156730,10.0,20.927,20.915,10.0]
[1680369157147,10.0,20.927,20.913,10.0]
[1680369157450,17.0,20.926,20.902,10.0]
[1680369157742,10.0,20.925,20.902,10.0]
[1680369157946,10.0,20.925,20.893,71.3883274]
[1680369157947,10.0,20.925,20.893,182.2622274]
[1680369158136,10.0,20.923,20.896,10.0]
[1680369158344,17.0,20.922,20.896,10.0]
[1680369158544,17.0,20.922,20.896,17.1871717]
[1680369158939,10.0,20.921,20.896,17.1871717]
[1680369159249,17.0,20.92,20.896,17.1871717]
[1680369159635,10.0,20.919,20.896,10.0]
[1680369159835,17.0,20.918,20.896,10.0]
[1680369160147,10.0,20.917,20.896,10.0]
[1680369160346,17.0,20.916,20.896,10.0]
[1680369160848,10.0,20.919,20.896,17.1871717]
[1680369161837,10.0,20.917,20.898,10.0]
[1680369162037,17.0,20.916,20.899,17.0]
[1680369162341,17.0,20.916,20.9,10.0]
[1680369162545,17.0,20.916,20.902,10.0]
[1680369163944,10.0,20.919,20.902,10.0]
[1680369164145,17.0,20.918,20.904,10.0]
[1680369167357,10.0,20.917,20.904,10.0]
[1680369168958,10.0,20.915,20.895,33.61552846]
[1680369169164,10.0,20.913,20.896,10.0]
[1680369170345,10.0,20.913,20.9,10.0]
[1680369171463,10.0,20.913,20.899,17.0]
[1680369176454,10.0,20.915,20.899,17.0]
[1680369176657,125.6864,20.916,20.899,17.0]
[1680369176860,10.0,20.915,20.9,10.0]
[1680369181575,10.0,20.915,20.895,19.129962]
[1680369181760,19.127,20.913,20.895,19.129962]
[1680369182079,40.66,20.91,20.895,19.129962]
[1680369182260,17.0,20.909,20.895,19.129962]
[1680369182577,24.1871717,20.909,20.895,19.129962]
[1680369182780,17.1871717,20.908,20.895,19.129962]
[1680369182978,17.0,20.907,20.895,19.129962]
[1680369183163,24.1871717,20.907,20.895,19.129962]
[1680369183363,10.0,20.906,20.895,19.129962]
[1680369183576,17.0,20.905,20.895,19.129962]
[1680369183877,10.0,20.904,20.895,19.129962]
[1680369190577,50.66,20.91,20.895,19.129962]
[1680369190777,50.66,20.91,20.897,10.0]
[1680369190971,10.0,20.909,20.895,19.129962]
[1680369191974,10.0,20.907,20.895,19.129962]
[1680369192179,17.0,20.906,20.889,10.0]
[1680369192888,40.66,20.91,20.893,27.0]
[1680369193086,10.0,20.919,20.893,27.0]
[1680369193387,10.0,20.919,20.894,10.0]
[1680369193580,10.0,20.919,20.895,17.0]
[1680369193892,132.03545556,20.911,20.896,10.0]
[1680369194085,132.03545556,20.911,20.897,17.0]
[1680369194476,132.03545556,20.911,20.898,10.0]
[1680369195881,10.0,20.91,20.898,10.0]
[1680369196285,132.03545556,20.911,20.898,10.0]
[1680369196475,10.0,20.919,20.9,19.138]
[1680369196790,10.0,20.915,20.902,10.0]
[1680369196974,10.0,20.919,20.902,10.0]
[1680369203304,10.0,20.919,20.904,10.0]
[1680369203681,7.1871717,20.92,20.904,10.0]
[1680369203998,19.134045,20.921,20.905,17.0]
[1680369204498,19.134045,20.921,20.907,19.132]
[1680369204797,19.134045,20.921,20.906,7.1871717]
[1680369204798,19.134045,20.921,20.911,19.128]
[1680369204986,19.134045,20.921,20.912,17.0]
[1680369205677,19.134045,20.921,20.913,10.0]
[1680369205882,19.134045,20.921,20.914,17.0]
[1680369206080,19.134045,20.921,20.915,10.0]
[1680369206276,19.134045,20.921,20.916,17.0]
[1680369206503,19.134045,20.921,20.917,10.0]
[1680369206800,19.134045,20.921,20.913,10.0]
[1680369206998,19.134045,20.921,20.914,17.0]
[1680369207185,19.134045,20.921,20.915,10.0]
[1680369208299,19.134045,20.921,20.916,17.0]
[1680369208485,19.134045,20.921,20.917,10.0]
[1680369208684,19.134045,20.921,20.918,17.0]
[1680369209101,19.134045,20.921,20.917,10.0]
[1680369209401,19.134045,20.921,20.918,17.0]
[1680369213402,19.134045,20.921,20.919,10.0]
[1680369213596,19.134045,20.921,20.92,17.0]
[1680369216107,10.0,20.931,20.92,17.0]
[1680369216302,10.0,20.931,20.918,17.0]
[1680369217095,10.0,20.931,20.913,141.9275]
[1680369217096,10.0,20.931,20.913,131.9275]
[1680369218006,10.0,20.931,20.914,10.0]
[1680369218303,10.0,20.931,20.916,10.0]
[1680369220213,223.9425,20.933,20.917,36.122]
[1680369220395,223.9425,20.933,20.918,10.0]
[1680369220595,223.9425,20.933,20.919,17.0]
[1680369221103,10.0,20.932,20.919,17.0]
[1680369221304,10.0,20.932,20.918,17.0]
[1680369226436,10.0,20.932,20.913,126.7038]
[1680369226598,17.0,20.931,20.913,116.7038]
[1680369226915,10.0,20.93,20.913,116.7038]
[1680369227113,50.54,20.93,20.912,24.51077286]
[1680369227314,50.54,20.93,20.913,10.0]
[1680369227494,37.2,20.93,20.913,10.0]
[1680369228302,37.2,20.93,20.914,17.0]
[1680369228608,17.0,20.929,20.906,19.132]
[1680369229412,10.0,20.928,20.907,10.0]
[1680369229616,10.0,20.928,20.909,19.129]
[1680369229811,10.0,20.928,20.91,17.0]
[1680369230012,10.0,20.928,20.911,10.0]
[1680369230217,10.0,20.928,20.912,17.0]
[1680369230517,10.0,20.928,20.913,29.126]
[1680369230721,10.0,20.928,20.915,10.0]
[1680369231222,10.0,20.928,20.916,17.0]
[1680369233624,10.0,20.928,20.913,19.126]
[1680369237826,10.0,20.926,20.913,19.126]
[1680369242626,10.0,20.928,20.914,10.0]
[1680369243313,50.63,20.93,20.916,19.123]
[1680369243506,40.63,20.93,20.917,17.0]
[1680369243710,40.63,20.93,20.918,10.0]
[1680369245029,10.0,20.929,20.917,17.0]
[1680369245433,40.63,20.93,20.918,10.0]
[1680369245616,81.62,20.94,20.919,17.0]
[1680369245819,7.1871717,20.939,20.918,10.0]
[1680369250333,7.1871717,20.939,20.92,19.12]
[1680369250634,7.1871717,20.939,20.922,10.0]
[1680369250822,7.1871717,20.939,20.923,17.0]
[1680369251132,10.0,20.932,20.92,19.12]
[1680369251347,10.0,20.932,20.921,17.0]
[1680369256344,10.0,20.94,20.923,17.0]
[1680369256523,17.1871717,20.94,20.923,17.0]
[1680369257142,10.0,20.938,20.923,17.0]
[1680369258736,17.1871717,20.938,20.923,17.0]
[1680369260134,17.1871717,20.938,20.918,10.0]
[1680369260331,17.0,20.937,20.919,17.0]
[1680369260522,10.0,20.936,20.92,10.0]
[1680369260728,10.0,20.934,20.92,10.0]
[1680369261940,10.0,20.936,20.92,10.0]
[1680369262244,10.0,20.936,20.921,17.0]
[1680369269543,10.0,20.934,20.92,10.0]
[1680369273447,10.0,20.938,20.92,10.0]
[1680369273652,10.0,20.938,20.922,10.0]
[1680369273950,10.0,20.938,20.924,10.0]
[1680369274152,10.0,20.938,20.925,17.0]
[1680369274353,10.0,20.938,20.922,10.0]
[1680369274544,17.1871717,20.938,20.923,17.0]
[1680369276941,10.0,20.941,20.923,17.0]
[1680369277748,10.0,20.941,20.924,10.0]
[1680369277948,10.0,20.941,20.925,17.0]
[1680369278755,10.0,20.941,20.926,10.0]
[1680369278957,10.0,20.941,20.927,17.0]
[1680369280854,10.0,20.942,20.927,17.0]
[1680369281049,10.0,20.942,20.928,10.0]
[1680369281245,10.0,20.942,20.929,17.0]
[1680369284245,10.0,20.942,20.914,120.86845046]
[1680369284447,17.0,20.941,20.92,69.589]
[1680369284659,10.0,20.94,20.924,17.0]
[1680369285552,57.8171717,20.94,20.914,29.125]
[1680369285756,17.0,20.939,20.915,121.0738]
[1680369286052,7.1871717,20.938,20.915,121.0738]
[1680369286260,17.0,20.937,20.915,121.0738]
[1680369286459,10.0,20.936,20.915,121.0738]
[1680369286642,17.0,20.935,20.915,121.0738]
[1680369286842,10.0,20.934,20.915,121.0738]
[1680369287245,17.1871717,20.934,20.915,121.0738]
[1680369287461,10.0,20.932,20.915,121.0738]
[1680369287661,10.0,20.932,20.913,19.113753]
[1680369287959,10.0,20.93,20.914,10.0]
[1680369288150,17.0,20.929,20.914,10.0]
[1680369288870,10.0,20.93,20.914,10.0]
[1680369292861,50.63,20.93,20.913,10.0]
[1680369293060,17.0,20.929,20.911,113.2617]
[1680369293766,10.0,20.928,20.912,10.0]
[1680369294259,17.0,20.927,20.912,10.0]
[1680369294643,10.0,20.926,20.912,10.0]
[1680369298668,10.0,20.928,20.912,10.0]
[1680369299055,10.0,20.934,20.913,36.126]
[1680369299571,10.0,20.934,20.914,10.0]
[1680369299757,10.0,20.934,20.915,17.0]
[1680369300067,10.0,20.934,20.916,10.0]
[1680369300369,10.0,20.934,20.917,17.0]
[1680369300563,10.0,20.934,20.918,10.0]
[1680369300768,10.0,20.934,20.919,17.0]
[1680369301065,10.0,20.932,20.92,10.0]
[1680369301273,10.0,20.932,20.919,17.0]
[1680369313077,10.0,20.932,20.911,132.069726]
[1680369313276,27.2,20.93,20.911,132.069726]
[1680369313481,10.0,20.929,20.911,132.069726]
[1680369313667,27.0,20.929,20.911,112.9549]
[1680369314485,27.0,20.929,20.912,27.0]
[1680369316170,10.0,20.929,20.912,27.0]
[1680369316377,122.2349,20.933,20.913,10.0]
[1680369316683,122.2349,20.933,20.914,17.0]
[1680369316880,10.0,20.932,20.915,10.0]
[1680369317078,10.0,20.932,20.916,17.0]
[1680369317265,10.0,20.932,20.917,10.0]
[1680369317464,10.0,20.932,20.918,17.0]
[1680369318283,10.0,20.932,20.919,10.0]
[1680369321585,10.0,20.932,20.918,17.0]
[1680369321879,10.0,20.932,20.915,10.0]
[1680369322090,10.0,20.932,20.916,17.0]
[1680369323087,9.91970275,20.932,20.916,17.0]
[1680369323278,9.91970275,20.932,20.917,10.0]
[1680369325377,10.0,20.93,20.917,10.0]
[1680369326498,10.0,20.93,20.908,27.2]
[1680369326499,17.0,20.929,20.908,27.2]
[1680369326874,7.1871717,20.928,20.908,27.2]
[1680369327074,17.0,20.927,20.908,27.2]
[1680369327293,10.0,20.926,20.909,10.0]
[1680369327479,17.0,20.925,20.909,10.0]
[1680369327680,10.0,20.924,20.909,10.0]
[1680369328000,10.0,20.922,20.909,10.0]
[1680369328880,119.4451,20.922,20.909,10.0]
[1680369330091,109.4451,20.922,20.909,10.0]
[1680369330292,109.4451,20.922,20.91,17.0]
[1680369330598,109.9945,20.925,20.911,10.0]
[1680369330781,109.9945,20.925,20.912,17.0]
[1680369330978,109.9945,20.925,20.913,10.0]
[1680369335795,109.9945,20.925,20.914,17.0]
[1680369336001,109.9945,20.925,20.915,10.0]
[1680369336308,34.1471717,20.93,20.916,17.0]
[1680369336612,26.96,20.93,20.916,17.0]
[1680369336987,122.2349,20.933,20.916,17.0]
[1680369337187,10.0,20.932,20.917,10.0]
[1680369337489,10.0,20.932,20.919,10.0]
[1680369340198,10.0,20.932,20.917,10.0]
[1680369340407,10.0,20.93,20.917,10.0]
[1680369341201,37.01,20.93,20.91,46.269]
[1680369341418,10.0,20.928,20.907,10.0]
[1680369341583,10.0,20.928,20.911,10.0]
[1680369341788,10.0,20.926,20.911,10.0]
[1680369345998,10.0,20.926,20.907,10.0]
[1680369346191,17.0,20.925,20.906,29.133]
[1680369346507,10.0,20.924,20.907,10.0]
[1680369347004,10.0,20.926,20.91,10.0]
[1680369347306,17.0,20.925,20.905,10.0]
[1680369347603,27.2,20.92,20.905,10.0]
[1680369348301,17.0,20.919,20.902,10.0]
[1680369348492,10.0,20.918,20.902,10.0]
[1680369348695,17.0,20.917,20.902,10.0]
[1680369349710,10.0,20.916,20.902,10.0]
[1680369350701,17.0,20.917,20.902,10.0]
[1680369356712,10.0,20.918,20.902,10.0]
[1680369356894,17.0,20.917,20.902,10.0]
[1680369360813,10.0,20.916,20.902,10.0]
[1680369363108,10.0,20.916,20.902,9.89873704]
[1680369363718,17.0,20.917,20.902,9.89873704]
[1680369365417,17.0,20.917,20.905,10.0]
[1680369369219,17.0,20.918,20.905,10.0]
[1680369369919,118.5788,20.919,20.905,10.0]
[1680369371431,10.0,20.917,20.905,10.0]
[1680369372606,27.0,20.918,20.905,10.0]
[1680369375216,10.0,20.917,20.905,10.0]
[1680369375719,10.0,20.917,20.902,9.89873704]
[1680369376022,118.5788,20.919,20.902,29.03473704]
[1680369376199,118.5788,20.919,20.903,17.0]
[1680369376405,118.5788,20.919,20.904,10.0]
[1680369377521,10.0,20.918,20.904,10.0]
[1680369377908,10.0,20.916,20.904,10.0]
[1680369379415,10.0,20.916,20.901,24.0450426]
[1680369379617,10.0,20.914,20.9,10.0]
[1680369379821,17.0,20.913,20.9,10.0]
[1680369382222,17.0,20.913,20.898,10.0]
[1680369382223,10.0,20.912,20.898,10.0]
[1680369382426,17.0,20.911,20.898,10.0]
[1680369382731,132.3073,20.911,20.898,10.0]
[1680369383420,110.2508,20.91,20.898,10.0]
[1680369385512,110.2508,20.91,20.9,10.0]
[1680369389632,110.2508,20.91,20.898,10.0]
[1680369392838,110.2508,20.91,20.899,17.0]
[1680369393029,110.2508,20.91,20.9,10.0]
[1680369393440,115.3073,20.911,20.902,10.0]
[1680369398342,115.3073,20.911,20.904,10.0]
[1680369401140,115.3073,20.911,20.905,17.0]
[1680369401334,115.3073,20.911,20.906,10.0]
[1680369401527,118.4377,20.917,20.906,10.0]
[1680369402936,118.4377,20.917,20.904,10.0]
[1680369403139,118.4377,20.917,20.9,10.0]
[1680369403337,10.0,20.915,20.9,10.0]
[1680369403531,17.0,20.914,20.9,10.0]
[1680369403734,17.0,20.914,20.897,10.0]
[1680369404043,17.0,20.914,20.894,10.0]
[1680369404044,26.99,20.91,20.893,117.423]
[1680369404344,27.0,20.909,20.893,10.0]
[1680369404744,139.9605,20.909,20.893,10.0]
[1680369410750,112.9605,20.909,20.893,10.0]
[1680369411054,112.9605,20.909,20.894,17.0]
[1680369411253,112.9605,20.909,20.895,10.0]
[1680369411542,112.9605,20.909,20.897,10.0]
[1680369412044,112.9605,20.909,20.898,17.0]
[1680369412250,112.9605,20.909,20.899,10.0]
[1680369413450,112.9605,20.909,20.901,10.0]
[1680369417347,112.9605,20.909,20.9,17.0]
[1680369417551,112.9605,20.909,20.897,10.0]
[1680369420248,112.9605,20.909,20.896,10.0]
[1680369420457,112.9605,20.909,20.897,17.0]
[1680369421554,112.9605,20.909,20.896,10.0]
[1680369438646,10.0,20.907,20.896,10.0]
[1680369439464,10.0,20.907,20.891,10.0]
[1680369439660,10.0,20.905,20.891,10.0]
[1680369439962,10.0,20.903,20.891,10.0]
[1680369441970,10.0,20.903,20.889,10.0]
[1680369446770,10.0,20.903,20.888,10.0]
[1680369446974,27.01,20.9,20.888,10.0]
[1680369447176,136.0856,20.9,20.888,10.0]
[1680369447476,136.0856,20.9,20.883,10.0]
[1680369447677,27.0,20.899,20.883,14.58142622]
[1680369448188,34.1871717,20.899,20.878,10.0]
[1680369448357,17.1871717,20.899,20.881,19.155]
[1680369448555,136.0856,20.9,20.882,14.66647844]
[1680369448869,136.0856,20.9,20.887,10.0]
[1680369450660,10.0,20.899,20.882,10.0]
[1680369450856,17.0,20.898,20.882,10.0]
[1680369451079,10.0,20.897,20.882,10.0]
[1680369451374,17.0,20.896,20.882,10.0]
[1680369453281,17.0,20.896,20.881,14.21297461]
[1680369453668,10.0,20.895,20.881,14.21297461]
[1680369453984,17.0,20.894,20.881,14.21297461]
[1680369455983,17.0,20.894,20.878,10.0]
[1680369456161,129.908,20.894,20.878,10.0]
[1680369456581,10.0,20.893,20.878,10.0]
[1680369456778,10.0,20.891,20.872,29.164]
[1680369456967,26.99,20.89,20.872,29.164]
[1680369457276,127.145,20.889,20.872,29.164]
[1680369461180,10.0,20.888,20.872,29.164]
[1680369461375,17.0,20.887,20.872,29.164]
[1680369462790,17.0,20.887,20.876,19.145271]
[1680369463384,10.0,20.886,20.876,19.145271]
[1680369463568,17.0,20.885,20.876,19.145271]
[1680369464383,10.0,20.886,20.876,19.145271]
[1680369464584,17.0,20.885,20.876,19.145271]
[1680369466572,110.145,20.889,20.877,10.0]
[1680369467396,110.145,20.889,20.876,19.145271]
[1680369468792,17.0,20.888,20.876,19.145271]
[1680369470393,17.0,20.888,20.872,10.0]
[1680369474890,17.1871717,20.887,20.869,10.0]
[1680369475093,17.0,20.886,20.869,10.0]
[1680369475396,10.0,20.885,20.869,10.0]
[1680369475576,17.0,20.884,20.869,10.0]
[1680369475773,10.0,20.883,20.869,10.0]
[1680369476094,10.0,20.881,20.869,10.0]
[1680369477396,10.0,20.883,20.869,10.0]
[1680369477598,17.0,20.882,20.869,10.0]
[1680369479587,10.0,20.885,20.869,10.0]
[1680369479787,17.0,20.884,20.869,10.0]
[1680369480300,10.0,20.883,20.869,10.0]
[1680369480500,10.0,20.883,20.868,29.152043]
[1680369480684,17.0,20.882,20.868,29.152043]
[1680369481595,17.0,20.882,20.868,10.0]
[1680369497315,10.0,20.883,20.868,10.0]
[1680369498202,10.0,20.885,20.868,10.0]
[1680369498511,10.0,20.885,20.861,19.158072]
[1680369498512,54.16,20.88,20.861,19.158072]
[1680369500413,26.96,20.87,20.854,17.0]
[1680369500606,26.96,20.87,20.855,10.0]
[1680369506921,19.162,20.875,20.855,10.0]
[1680369507124,10.0,20.873,20.857,10.0]
[1680369508225,10.0,20.871,20.857,10.0]
[1680369508626,160.50497412,20.879,20.857,10.0]
[1680369508833,118.6444,20.879,20.858,17.0]
[1680369509023,10.0,20.876,20.859,10.0]
[1680369511928,29.169387,20.877,20.86,17.0]
[1680369512134,29.169387,20.877,20.861,10.0]
[1680369512333,10.0,20.876,20.863,10.0]
[1680369514731,9.5,20.876,20.863,10.0]
[1680369524124,10.0,20.877,20.863,10.0]
[1680369524842,113.4359,20.878,20.864,17.0]
[1680369525025,113.4359,20.878,20.865,10.0]
[1680369530940,26.96,20.88,20.865,10.0]
[1680369531148,19.165421,20.881,20.866,17.0]
[1680369531828,19.165421,20.881,20.867,10.0]
[1680369532024,19.165421,20.881,20.868,17.0]
[1680369532740,19.165421,20.881,20.869,10.0]
[1680369541851,10.0,20.887,20.869,10.0]
[1680369542152,10.0,20.885,20.869,10.0]
[1680369545937,10.0,20.885,20.87,17.0]
[1680369550655,10.0,20.885,20.871,10.0]
[1680369557649,10.0,20.885,20.872,17.0]
[1680369559458,10.0,20.885,20.869,10.0]
[1680369559644,10.0,20.885,20.87,17.0]
[1680369564859,10.0,20.885,20.869,10.0]
[1680369565262,10.0,20.885,20.87,17.0]
[1680369566162,10.0,20.885,20.871,10.0]
[1680369567556,21.85,20.88,20.871,10.0]
[1680369573660,127.4732,20.888,20.873,10.0]
[1680369573856,127.4732,20.888,20.874,17.0]
[1680369574059,10.0,20.887,20.874,17.0]
[1680369574574,10.0,20.887,20.869,10.0]
[1680369574875,10.0,20.885,20.869,10.0]
[1680369575865,10.0,20.885,20.87,17.0]
[1680369576067,10.0,20.885,20.871,10.0]
[1680369577063,21.85,20.88,20.871,10.0]
[1680369586668,21.85,20.88,20.87,17.0]
[1680369588063,21.85,20.88,20.871,10.0]
[1680369588261,21.85,20.88,20.872,17.0]
[1680369591278,21.85,20.88,20.86,60.2]
[1680369591480,21.85,20.88,20.865,10.0]
[1680369591699,21.85,20.88,20.867,115.9125]
[1680369591979,21.85,20.88,20.867,129.9802491]
[1680369592187,21.85,20.88,20.868,10.0]
[1680369600478,21.85,20.88,20.867,14.0677491]
[1680369600679,21.85,20.88,20.86,110.8923]
[1680369600880,21.85,20.87,20.859,29.175]
[1680369602480,10.0,20.877,20.859,29.175]
[1680369602685,10.0,20.877,20.863,10.0]
[1680369604988,27.35,20.88,20.863,10.0]
[1680369605199,229.7444,20.889,20.866,19.169]
[1680369605378,229.7444,20.889,20.867,127.3238]
[1680369605987,10.0,20.888,20.868,10.0]
[1680369606288,17.0,20.886,20.869,17.0]
[1680369606494,10.0,20.885,20.87,10.0]
[1680369609584,119.5994,20.887,20.87,10.0]
[1680369609790,110.145,20.889,20.871,17.0]
[1680369610002,110.145,20.889,20.872,10.0]
[1680369610183,110.145,20.889,20.873,17.0]
[1680369610581,10.0,20.888,20.873,17.0]
[1680369611897,10.0,20.886,20.87,10.0]
[1680369613396,10.0,20.886,20.871,17.0]
[1680369623414,17.0,20.885,20.867,108.9768]
[1680369623612,27.32,20.88,20.867,108.9768]
[1680369623819,10.0,20.879,20.867,108.9768]
[1680369624310,10.0,20.879,20.864,10.0]
[1680369624499,117.1549,20.878,20.864,10.0]
[1680369624811,10.0,20.877,20.865,17.0]
[1680369627910,10.0,20.877,20.864,10.0]
[1680369629416,117.1549,20.878,20.864,10.0]
[1680369629599,117.1549,20.878,20.865,17.0]
[1680369629916,117.1549,20.878,20.866,10.0]
[1680369630103,117.1549,20.878,20.868,10.0]
[1680369632817,117.1549,20.878,20.866,10.0]
[1680369638917,117.1549,20.878,20.858,38.336356]
[1680369639123,10.0,20.876,20.858,38.336356]
[1680369639509,17.0,20.875,20.858,19.159356]
[1680369639710,10.0,20.874,20.858,19.159356]
[1680369641810,27.32,20.87,20.858,19.159356]
[1680369642007,10.0,20.869,20.858,19.159356]
[1680369642329,17.0,20.868,20.858,19.159356]
[1680369642635,10.0,20.867,20.858,19.159356]
[1680369642818,10.0,20.867,20.85,10.0]
[1680369643018,118.2974,20.867,20.85,10.0]
[1680369643417,118.2974,20.867,20.851,17.0]
[1680369643626,118.2974,20.867,20.852,10.0]
[1680369644522,17.0,20.866,20.844,72.75164056]
[1680369644735,10.0,20.865,20.845,134.90261797]
[1680369644915,17.0,20.864,20.845,134.90261797]
[1680369645307,17.0,20.864,20.839,19.194]
[1680369645308,27.32,20.86,20.839,19.194]
[1680369645514,10.0,20.859,20.841,10.0]
[1680369646320,27.32,20.86,20.841,10.0]
[1680369646526,117.5235,20.863,20.843,10.0]
[1680369646707,117.5235,20.863,20.845,19.188]
[1680369646907,117.5235,20.863,20.846,10.0]
[1680369647427,117.5235,20.863,20.847,17.0]
[1680369647615,117.5235,20.863,20.848,10.0]
[1680369647813,117.5235,20.863,20.849,17.0]
[1680369648017,117.5235,20.863,20.85,10.0]
[1680369651917,10.0,20.862,20.85,10.0]
[1680369652628,27.23,20.86,20.847,19.169313]
[1680369653135,10.0,20.859,20.847,19.169313]
[1680369654030,27.23,20.86,20.847,19.169313]
[1680369654221,10.0,20.859,20.847,19.169313]
[1680369655738,17.0,20.858,20.847,19.169313]
[1680369655926,10.0,20.857,20.847,19.169313]
[1680369657020,17.0,20.856,20.847,19.169313]
[1680369657220,10.0,20.855,20.847,19.169313]
[1680369658031,10.0,20.855,20.842,10.0]
[1680369658734,114.3505,20.856,20.842,10.0]
[1680369660730,114.3505,20.856,20.843,17.0]